[Event "Early-Titled-Tuesday-Blitz-February-27-2024"]
[Site "Chess.com"]
[Date "2024.02.27"]
[Round "4"]
[White "Fjal"]
[Black "Cheer_Down"]
[Result "1/2-1/2"]
[WhiteElo "2254"]
[BlackElo "2487"]
[TimeControl "180+1"]
[EndTime "8:40:36 PST"]
[Termination "Game drawn by 50-move rule"]

1. Nf3 {[%clk 0:02:54]} 1... Nf6 {[%clk 0:02:58.9]} 2. g3 {[%clk 0:02:54.9]}
2... b6 {[%clk 0:02:58.5]} 3. Bg2 {[%clk 0:02:55.8]} 3... Bb7 {[%clk 0:02:58.9]}
4. O-O {[%clk 0:02:56.4]} 4... e6 {[%clk 0:02:56.7]} 5. c4 {[%clk 0:02:56.5]}
5... Be7 {[%clk 0:02:53.3]} 6. d4 {[%clk 0:02:57]} 6... d5 {[%clk 0:02:51.5]} 7.
Nc3 {[%clk 0:02:56.4]} 7... O-O {[%clk 0:02:50.9]} 8. Ne5 {[%clk 0:02:54.9]}
8... Na6 {[%clk 0:02:49.8]} 9. Re1 {[%clk 0:02:47.8]} 9... c5 {[%clk 0:02:47.8]}
10. cxd5 {[%clk 0:02:39.9]} 10... exd5 {[%clk 0:02:42.8]} 11. Bg5 {[%clk
0:02:19.3]} 11... h6 {[%clk 0:02:25.3]} 12. Bxf6 {[%clk 0:02:16.8]} 12... Bxf6
{[%clk 0:02:25.9]} 13. e3 {[%clk 0:02:09.9]} 13... Re8 {[%clk 0:02:20.7]} 14. f4
{[%clk 0:02:06.2]} 14... Nc7 {[%clk 0:01:51.5]} 15. Qh5 {[%clk 0:01:39.1]} 15...
Bxe5 {[%clk 0:01:29.7]} 16. fxe5 {[%clk 0:01:32.1]} 16... cxd4 {[%clk
0:01:14.8]} 17. exd4 {[%clk 0:01:33]} 17... Qg5 {[%clk 0:01:12.6]} 18. Qxg5
{[%clk 0:01:24.6]} 18... hxg5 {[%clk 0:01:12.3]} 19. Rac1 {[%clk 0:01:25.5]}
19... Rad8 {[%clk 0:00:58.1]} 20. Ne4 {[%clk 0:01:14.2]} 20... Nb5 {[%clk
0:00:50.8]} 21. Nxg5 {[%clk 0:01:10.7]} 21... Nxd4 {[%clk 0:00:50.1]} 22. Rc7
{[%clk 0:01:10.9]} 22... Ba6 {[%clk 0:00:43.4]} 23. Nxf7 {[%clk 0:00:31.6]}
23... Rc8 {[%clk 0:00:32]} 24. Rxc8 {[%clk 0:00:31.7]} 24... Rxc8 {[%clk
0:00:27.3]} 25. Bxd5 {[%clk 0:00:32.1]} 25... Kf8 {[%clk 0:00:25.7]} 26. Re4
{[%clk 0:00:20.4]} 26... Rc1+ {[%clk 0:00:21.7]} 27. Kg2 {[%clk 0:00:20.5]}
27... Nf5 {[%clk 0:00:17.4]} 28. g4 {[%clk 0:00:14.5]} 28... Ne7 {[%clk
0:00:13.2]} 29. Bb3 {[%clk 0:00:13.7]} 29... Bb7 {[%clk 0:00:13.4]} 30. Nd6
{[%clk 0:00:11.1]} 30... Bxe4+ {[%clk 0:00:12.8]} 31. Nxe4 {[%clk 0:00:12]}
31... Re1 {[%clk 0:00:12.8]} 32. Kf3 {[%clk 0:00:12.1]} 32... Ng6 {[%clk
0:00:12.2]} 33. e6 {[%clk 0:00:11.2]} 33... Ne5+ {[%clk 0:00:12.3]} 34. Kf4
{[%clk 0:00:11.8]} 34... Nxg4 {[%clk 0:00:12.6]} 35. Nd6 {[%clk 0:00:06.1]}
35... Nf6 {[%clk 0:00:11.6]} 36. Nf5 {[%clk 0:00:06.1]} 36... b5 {[%clk
0:00:09.6]} 37. e7+ {[%clk 0:00:01.8]} 37... Ke8 {[%clk 0:00:09.5]} 38. Nxg7+
{[%clk 0:00:02]} 38... Kxe7 {[%clk 0:00:09.4]} 39. Nf5+ {[%clk 0:00:02.9]} 39...
Kd7 {[%clk 0:00:09.4]} 40. Nd4 {[%clk 0:00:02.8]} 40... Rh1 {[%clk 0:00:08.4]}
41. Nxb5 {[%clk 0:00:02.1]} 41... Rxh2 {[%clk 0:00:07.3]} 42. Nxa7 {[%clk
0:00:03]} 42... Kc7 {[%clk 0:00:06.6]} 43. Nb5+ {[%clk 0:00:02.5]} 43... Kb6
{[%clk 0:00:07]} 44. Nd4 {[%clk 0:00:03.2]} 44... Nd7 {[%clk 0:00:06.7]} 45. Ne6
{[%clk 0:00:02.9]} 45... Rxb2 {[%clk 0:00:06.3]} 46. Ke3 {[%clk 0:00:03.1]}
46... Ne5 {[%clk 0:00:06.2]} 47. Ke4 {[%clk 0:00:03.4]} 47... Ng4 {[%clk
0:00:06.2]} 48. Kf4 {[%clk 0:00:03.6]} 48... Nf2 {[%clk 0:00:06.4]} 49. Kf3
{[%clk 0:00:03.6]} 49... Nd3 {[%clk 0:00:06.3]} 50. Ke3 {[%clk 0:00:04.2]} 50...
Nc1 {[%clk 0:00:06.5]} 51. Bd5 {[%clk 0:00:03.7]} 51... Nxa2 {[%clk 0:00:05.3]}
52. Bxa2 {[%clk 0:00:04.6]} 52... Rxa2 {[%clk 0:00:06.2]} 53. Kd4 {[%clk
0:00:05.1]} 53... Kb7 {[%clk 0:00:06]} 54. Nf4 {[%clk 0:00:05.6]} 54... Kc7
{[%clk 0:00:06]} 55. Nd3 {[%clk 0:00:06.3]} 55... Kd6 {[%clk 0:00:05.4]} 56. Nf4
{[%clk 0:00:06.8]} 56... Rh2 {[%clk 0:00:05.4]} 57. Ke4 {[%clk 0:00:06.8]} 57...
Rh4 {[%clk 0:00:05.3]} 58. Kf5 {[%clk 0:00:07.5]} 58... Kc7 {[%clk 0:00:05]} 59.
Ke5 {[%clk 0:00:07.7]} 59... Rh1 {[%clk 0:00:05.9]} 60. Kf5 {[%clk 0:00:08.2]}
60... Ra1 {[%clk 0:00:06.6]} 61. Ke5 {[%clk 0:00:08.7]} 61... Ra5+ {[%clk
0:00:07.3]} 62. Ke4 {[%clk 0:00:08.7]} 62... Kd6 {[%clk 0:00:07.9]} 63. Nd3
{[%clk 0:00:08.2]} 63... Ra4+ {[%clk 0:00:07.9]} 64. Ke3 {[%clk 0:00:08.9]}
64... Kd5 {[%clk 0:00:08.1]} 65. Nf4+ {[%clk 0:00:09.5]} 65... Ke5 {[%clk
0:00:08]} 66. Nd3+ {[%clk 0:00:10.4]} 66... Kf5 {[%clk 0:00:08.6]} 67. Nc5
{[%clk 0:00:10.3]} 67... Ra8 {[%clk 0:00:07.8]} 68. Kd4 {[%clk 0:00:10.6]} 68...
Rc8 {[%clk 0:00:06.9]} 69. Nd3 {[%clk 0:00:10]} 69... Rd8+ {[%clk 0:00:06.5]}
70. Ke3 {[%clk 0:00:10.7]} 70... Kg4 {[%clk 0:00:06.4]} 71. Ke4 {[%clk 0:00:11]}
71... Re8+ {[%clk 0:00:06.2]} 72. Ne5+ {[%clk 0:00:11.6]} 72... Kg5 {[%clk
0:00:06.1]} 73. Kd5 {[%clk 0:00:12.3]} 73... Kf6 {[%clk 0:00:06.3]} 74. Nc6
{[%clk 0:00:12.7]} 74... Re1 {[%clk 0:00:05.8]} 75. Nd4 {[%clk 0:00:13.4]} 75...
Rd1 {[%clk 0:00:06]} 76. Kc4 {[%clk 0:00:13.9]} 76... Ke5 {[%clk 0:00:06.1]} 77.
Nc6+ {[%clk 0:00:14.5]} 77... Kd6 {[%clk 0:00:06.5]} 78. Nb4 {[%clk 0:00:14.9]}
78... Rh1 {[%clk 0:00:06.3]} 79. Kd4 {[%clk 0:00:15]} 79... Rh4+ {[%clk
0:00:07.2]} 80. Kc3 {[%clk 0:00:15.6]} 80... Ke5 {[%clk 0:00:06.3]} 81. Nd3+
{[%clk 0:00:15.5]} 81... Ke4 {[%clk 0:00:06.6]} 82. Nc5+ {[%clk 0:00:15.7]}
82... Kd5 {[%clk 0:00:06.3]} 83. Nd3 {[%clk 0:00:15.9]} 83... Kc6 {[%clk
0:00:06.9]} 84. Nb4+ {[%clk 0:00:15.2]} 84... Kb5 {[%clk 0:00:06.7]} 85. Nd3
{[%clk 0:00:16.1]} 85... Rh3 {[%clk 0:00:07.2]} 86. Kd4 {[%clk 0:00:16.5]} 86...
Rh8 {[%clk 0:00:07.1]} 87. Ne5 {[%clk 0:00:17.1]} 87... Rd8+ {[%clk 0:00:08]}
88. Ke4 {[%clk 0:00:17.6]} 88... Ka5 {[%clk 0:00:07.8]} 89. Nd3 {[%clk 0:00:18]}
89... Rh8 {[%clk 0:00:07.3]} 90. Ne5 {[%clk 0:00:18.6]} 90... Kb5 {[%clk
0:00:07.4]} 91. Nd3 {[%clk 0:00:19.2]} 91... Kc4 {[%clk 0:00:07.6]} 92. Ne5+
{[%clk 0:00:19.7]} 92... Kc3 {[%clk 0:00:08.2]} 93. Kd5 {[%clk 0:00:19.5]} 93...
Rh5 {[%clk 0:00:08.2]} 94. Kd6 {[%clk 0:00:19]} 94... Rf5 {[%clk 0:00:06.8]} 95.
Nc6 {[%clk 0:00:19.2]} 95... Kc4 {[%clk 0:00:06.4]} 96. Ke6 {[%clk 0:00:19.6]}
96... Rc5 {[%clk 0:00:06.2]} 97. Ne5+ {[%clk 0:00:20.1]} 97... Kd4 {[%clk
0:00:05.7]} 98. Nf7 {[%clk 0:00:20]} 98... Rc6+ {[%clk 0:00:05.8]} 99. Nd6
{[%clk 0:00:19.8]} 99... Ra6 {[%clk 0:00:06.7]} 100. Kd7 {[%clk 0:00:20.3]}
100... Kc5 {[%clk 0:00:07.1]} 101. Nb7+ {[%clk 0:00:20.7]} 101... Kb6 {[%clk
0:00:07.6]} 102. Nd6 {[%clk 0:00:21.2]} 102... Ra7+ {[%clk 0:00:08.5]} 1/2-1/2

[Event "Early-Titled-Tuesday-Blitz-February-27-2024"]
[Site "Chess.com"]
[Date "2024.02.27"]
[Round "5"]
[White "Viktor_Poddubnyi"]
[Black "PavelChernomordik"]
[Result "0-1"]
[WhiteElo "2227"]
[BlackElo "2417"]
[TimeControl "180+1"]
[EndTime "8:48:53 PST"]
[Termination "PavelChernomordik won by resignation"]

1. e4 {[%clk 0:03:00.9]} 1... g6 {[%clk 0:02:59.6]} 2. d4 {[%clk 0:03:00.6]}
2... Bg7 {[%clk 0:02:59.6]} 3. c4 {[%clk 0:03:01.2]} 3... Nc6 {[%clk 0:02:59.1]}
4. Nf3 {[%clk 0:02:57.4]} 4... d6 {[%clk 0:02:58.8]} 5. d5 {[%clk 0:02:54]} 5...
Ne5 {[%clk 0:02:57.6]} 6. Nxe5 {[%clk 0:02:54.1]} 6... Bxe5 {[%clk 0:02:57.2]}
7. Be2 {[%clk 0:02:46]} 7... c6 {[%clk 0:02:56.9]} 8. O-O {[%clk 0:02:44.8]}
8... Nf6 {[%clk 0:02:50.8]} 9. f4 {[%clk 0:02:23.3]} 9... Qb6+ {[%clk 0:02:49]}
10. Kh1 {[%clk 0:02:23.8]} 10... Bxb2 {[%clk 0:02:41.3]} 11. Nd2 {[%clk
0:02:11.2]} 11... Bxa1 {[%clk 0:02:39]} 0-1

[Event "Early-Titled-Tuesday-Blitz-February-27-2024"]
[Site "Chess.com"]
[Date "2024.02.27"]
[Round "5"]
[White "KononenkoD"]
[Black "alexrustemov"]
[Result "0-1"]
[WhiteElo "2618"]
[BlackElo "2843"]
[TimeControl "180+1"]
[EndTime "8:49:16 PST"]
[Termination "alexrustemov won by resignation"]

1. d4 {[%clk 0:03:00.9]} 1... g6 {[%clk 0:02:58.6]} 2. c4 {[%clk 0:02:59.8]}
2... Bg7 {[%clk 0:02:59]} 3. Nc3 {[%clk 0:03:00.3]} 3... c5 {[%clk 0:02:59.6]}
4. d5 {[%clk 0:02:59.5]} 4... Bxc3+ {[%clk 0:03:00]} 5. bxc3 {[%clk 0:02:59.5]}
5... f5 {[%clk 0:03:00.9]} 6. h4 {[%clk 0:02:59.5]} 6... Nf6 {[%clk 0:03:00.7]}
7. h5 {[%clk 0:02:58.1]} 7... Rg8 {[%clk 0:03:00.9]} 8. hxg6 {[%clk 0:02:57.3]}
8... hxg6 {[%clk 0:03:01.8]} 9. Nf3 {[%clk 0:02:52.6]} 9... Qa5 {[%clk
0:03:01.4]} 10. Bd2 {[%clk 0:02:51.6]} 10... d6 {[%clk 0:03:01.6]} 11. Ng5
{[%clk 0:02:50.7]} 11... Nbd7 {[%clk 0:03:01.4]} 12. e3 {[%clk 0:02:45.3]} 12...
Ne5 {[%clk 0:02:57.4]} 13. Be2 {[%clk 0:02:39.6]} 13... Bd7 {[%clk 0:02:57.5]}
14. Qb3 {[%clk 0:02:38.5]} 14... O-O-O {[%clk 0:02:56.8]} 15. Rb1 {[%clk
0:02:29.9]} 15... b6 {[%clk 0:02:56.1]} 16. f3 {[%clk 0:02:25]} 16... Rh8 {[%clk
0:02:55.4]} 17. Kf2 {[%clk 0:02:24.8]} 17... Qa4 {[%clk 0:02:54.7]} 18. Qxa4
{[%clk 0:02:16.4]} 18... Bxa4 {[%clk 0:02:54.1]} 19. Nf7 {[%clk 0:02:06.2]}
19... Nxf7 {[%clk 0:02:52.3]} 20. g4 {[%clk 0:01:58.3]} 20... fxg4 {[%clk
0:02:49.1]} 21. fxg4 {[%clk 0:01:59.2]} 21... Ne4+ {[%clk 0:02:48.1]} 22. Kg2
{[%clk 0:01:57.8]} 22... Nxd2 {[%clk 0:02:47.1]} 23. Rxh8 {[%clk 0:01:58.4]}
23... Rxh8 {[%clk 0:02:45.2]} 0-1

[Event "Early-Titled-Tuesday-Blitz-February-27-2024"]
[Site "Chess.com"]
[Date "2024.02.27"]
[Round "5"]
[White "xasid81"]
[Black "JaackCamel"]
[Result "1-0"]
[WhiteElo "2540"]
[BlackElo "2202"]
[TimeControl "180+1"]
[EndTime "8:50:59 PST"]
[Termination "xasid81 won by resignation"]

1. Nf3 {[%clk 0:03:00.9]} 1... d5 {[%clk 0:02:58.8]} 2. Ng1 {[%clk 0:03:01.8]}
2... e5 {[%clk 0:02:54.3]} 3. Nf3 {[%clk 0:03:02.7]} 3... e4 {[%clk 0:02:53]} 4.
Ng1 {[%clk 0:03:02.8]} 4... Nf6 {[%clk 0:02:52.4]} 5. d3 {[%clk 0:03:02.9]} 5...
exd3 {[%clk 0:02:50.1]} 6. exd3 {[%clk 0:03:00.4]} 6... Be7 {[%clk 0:02:49.5]}
7. Nf3 {[%clk 0:03:00.9]} 7... O-O {[%clk 0:02:49.1]} 8. Be2 {[%clk 0:03:01.5]}
8... c5 {[%clk 0:02:49.3]} 9. O-O {[%clk 0:03:02]} 9... Nc6 {[%clk 0:02:49]} 10.
h3 {[%clk 0:03:02.3]} 10... Bf5 {[%clk 0:02:48.2]} 11. Re1 {[%clk 0:03:01.5]}
11... h6 {[%clk 0:02:47.7]} 12. Nbd2 {[%clk 0:02:55.9]} 12... Bd6 {[%clk
0:02:47.3]} 13. Nf1 {[%clk 0:02:55.4]} 13... Qc7 {[%clk 0:02:46.4]} 14. c3
{[%clk 0:02:49]} 14... Rae8 {[%clk 0:02:43.9]} 15. d4 {[%clk 0:02:48.2]} 15...
b6 {[%clk 0:02:38.9]} 16. dxc5 {[%clk 0:02:45]} 16... bxc5 {[%clk 0:02:38.1]}
17. Ne3 {[%clk 0:02:38]} 17... Be4 {[%clk 0:02:35.7]} 18. Nf1 {[%clk 0:02:22.8]}
18... Rd8 {[%clk 0:02:34.6]} 19. Qa4 {[%clk 0:02:14.3]} 19... Rfe8 {[%clk
0:02:32]} 20. Bd2 {[%clk 0:01:51.6]} 20... Bf5 {[%clk 0:02:27.1]} 21. Bb5 {[%clk
0:01:48.7]} 21... Rxe1 {[%clk 0:02:17.1]} 22. Rxe1 {[%clk 0:01:47.1]} 22... Ne5
{[%clk 0:02:14.2]} 23. Nxe5 {[%clk 0:01:41.6]} 23... Bxe5 {[%clk 0:02:13.7]} 24.
c4 {[%clk 0:01:38.1]} 24... d4 {[%clk 0:02:06.7]} 25. Ba5 {[%clk 0:01:36.5]}
25... Bc2 {[%clk 0:01:43.9]} 26. Bxc7 {[%clk 0:01:30.8]} 26... Bxa4 {[%clk
0:01:43.1]} 27. Bxd8 {[%clk 0:01:29.1]} 27... Bxb5 {[%clk 0:01:41.6]} 28. Rxe5
{[%clk 0:01:28.7]} 28... Bxc4 {[%clk 0:01:40.6]} 29. Bxf6 {[%clk 0:01:28.4]} 1-0

[Event "Early-Titled-Tuesday-Blitz-February-27-2024"]
[Site "Chess.com"]
[Date "2024.02.27"]
[Round "5"]
[White "francyIM"]
[Black "Actuary44"]
[Result "1-0"]
[WhiteElo "2779"]
[BlackElo "2517"]
[TimeControl "180+1"]
[EndTime "8:51:18 PST"]
[Termination "francyIM won by resignation"]

1. e4 {[%clk 0:02:48]} 1... b6 {[%clk 0:03:00.2]} 2. Bc4 {[%clk 0:02:46.2]} 2...
Bb7 {[%clk 0:03:00.6]} 3. d3 {[%clk 0:02:46.5]} 3... e6 {[%clk 0:03:01.1]} 4.
Bb3 {[%clk 0:02:46.9]} 4... Nf6 {[%clk 0:03:01.5]} 5. Nd2 {[%clk 0:02:47.5]}
5... d5 {[%clk 0:03:01.7]} 6. Qe2 {[%clk 0:02:48.1]} 6... Be7 {[%clk 0:03:00.9]}
7. Ngf3 {[%clk 0:02:48.5]} 7... O-O {[%clk 0:03:00.6]} 8. e5 {[%clk 0:02:46.9]}
8... Nfd7 {[%clk 0:03:00.2]} 9. c3 {[%clk 0:02:47.3]} 9... c5 {[%clk 0:03:00.2]}
10. h4 {[%clk 0:02:46.6]} 10... Nc6 {[%clk 0:03:00.4]} 11. Bc2 {[%clk
0:02:46.5]} 11... d4 {[%clk 0:03:00.5]} 12. a4 {[%clk 0:02:43.9]} 12... Qc7
{[%clk 0:02:58.6]} 13. Nc4 {[%clk 0:02:44.3]} 13... a6 {[%clk 0:02:58.2]} 14.
Bf4 {[%clk 0:02:44]} 14... b5 {[%clk 0:02:49.7]} 15. Ncd2 {[%clk 0:02:40.9]}
15... b4 {[%clk 0:02:36.4]} 16. c4 {[%clk 0:02:34.2]} 16... Rae8 {[%clk
0:02:33.2]} 17. Bg3 {[%clk 0:02:34.1]} 17... Qd8 {[%clk 0:02:29.7]} 18. Ne4
{[%clk 0:02:29.9]} 18... f6 {[%clk 0:02:25.2]} 19. exf6 {[%clk 0:02:29]} 19...
Nxf6 {[%clk 0:02:25]} 20. Nfd2 {[%clk 0:02:27.6]} 20... e5 {[%clk 0:02:15.8]}
21. a5 {[%clk 0:02:27.7]} 21... Nxe4 {[%clk 0:02:07.2]} 22. Nxe4 {[%clk
0:02:28.6]} 22... Nxa5 {[%clk 0:01:51]} 23. Ba4 {[%clk 0:02:28.2]} 23... Bc6
{[%clk 0:01:48.6]} 24. Bxc6 {[%clk 0:02:27.6]} 24... Nxc6 {[%clk 0:01:49.5]} 25.
Rxa6 {[%clk 0:02:28.1]} 25... Qd7 {[%clk 0:01:47.1]} 26. O-O {[%clk 0:02:27.8]}
26... Ra8 {[%clk 0:01:31.5]} 27. Raa1 {[%clk 0:02:28]} 27... Rxa1 {[%clk
0:01:06.5]} 28. Rxa1 {[%clk 0:02:28.9]} 28... Qd8 {[%clk 0:01:07]} 29. Qg4
{[%clk 0:02:18.8]} 29... Qc8 {[%clk 0:01:01.3]} 30. Qxc8 {[%clk 0:02:17.4]}
30... Rxc8 {[%clk 0:01:01.7]} 31. Ra6 {[%clk 0:02:17.3]} 31... Bf6 {[%clk
0:00:55.7]} 32. Kf1 {[%clk 0:02:16.9]} 32... Kf7 {[%clk 0:00:54.8]} 33. Nd6+
{[%clk 0:02:17]} 1-0

[Event "Early-Titled-Tuesday-Blitz-February-27-2024"]
[Site "Chess.com"]
[Date "2024.02.27"]
[Round "5"]
[White "elchacal664"]
[Black "ritanovikova"]
[Result "0-1"]
[WhiteElo "2414"]
[BlackElo "2244"]
[TimeControl "180+1"]
[EndTime "8:51:30 PST"]
[Termination "ritanovikova won by resignation"]

1. c4 {[%clk 0:03:00.9]} 1... c5 {[%clk 0:02:59.5]} 2. Nc3 {[%clk 0:03:00.5]}
2... Nf6 {[%clk 0:02:47.4]} 3. g3 {[%clk 0:03:00.8]} 3... g6 {[%clk 0:02:47]} 4.
Bg2 {[%clk 0:03:01]} 4... Bg7 {[%clk 0:02:47.9]} 5. Nf3 {[%clk 0:03:01.2]} 5...
O-O {[%clk 0:02:48.6]} 6. O-O {[%clk 0:03:01.6]} 6... d6 {[%clk 0:02:49.4]} 7.
Rb1 {[%clk 0:02:59.9]} 7... Nc6 {[%clk 0:02:44.1]} 8. a3 {[%clk 0:02:59]} 8...
Nd4 {[%clk 0:02:38.7]} 9. b4 {[%clk 0:02:56.9]} 9... Nxf3+ {[%clk 0:02:38.4]}
10. Bxf3 {[%clk 0:02:56.3]} 10... cxb4 {[%clk 0:02:37.9]} 11. axb4 {[%clk
0:02:56.1]} 11... Rb8 {[%clk 0:02:31.5]} 12. Re1 {[%clk 0:02:50.9]} 12... b6
{[%clk 0:02:30.5]} 13. Qa4 {[%clk 0:02:42.8]} 13... Bb7 {[%clk 0:01:42.7]} 14.
e4 {[%clk 0:02:42.3]} 14... a6 {[%clk 0:01:39.7]} 15. d3 {[%clk 0:02:39]} 15...
Nd7 {[%clk 0:01:35.5]} 16. Bd2 {[%clk 0:02:38.1]} 16... Ne5 {[%clk 0:01:34.3]}
17. Be2 {[%clk 0:02:38.1]} 17... f5 {[%clk 0:01:34.4]} 18. b5 {[%clk 0:02:02.9]}
18... axb5 {[%clk 0:01:30.7]} 19. Qxb5 {[%clk 0:01:55]} 19... fxe4 {[%clk
0:01:30.8]} 20. Qxb6 {[%clk 0:01:42.1]} 20... Qxb6 {[%clk 0:01:26.7]} 21. Rxb6
{[%clk 0:01:37.6]} 21... exd3 {[%clk 0:01:27]} 22. Bd1 {[%clk 0:01:36.8]} 22...
Nxc4 {[%clk 0:01:27.1]} 23. Bb3 {[%clk 0:01:33.1]} 23... d5 {[%clk 0:01:21]} 24.
Nxd5 {[%clk 0:01:29.2]} 24... Bxd5 {[%clk 0:01:16.8]} 25. Rxb8 {[%clk
0:01:25.8]} 25... Rxb8 {[%clk 0:01:15.1]} 0-1

[Event "Early-Titled-Tuesday-Blitz-February-27-2024"]
[Site "Chess.com"]
[Date "2024.02.27"]
[Round "5"]
[White "Susal_De_Silva"]
[Black "Lukianoo"]
[Result "0-1"]
[WhiteElo "2618"]
[BlackElo "2843"]
[TimeControl "180+1"]
[EndTime "8:51:35 PST"]
[Termination "Lukianoo won by resignation"]

1. e4 {[%clk 0:03:00.9]} 1... c6 {[%clk 0:02:40.7]} 2. d4 {[%clk 0:02:57.4]}
2... d5 {[%clk 0:02:39.2]} 3. Nc3 {[%clk 0:02:58.1]} 3... g6 {[%clk 0:02:36.8]}
4. Nf3 {[%clk 0:02:53.9]} 4... Bg7 {[%clk 0:02:36.8]} 5. Be2 {[%clk 0:02:51.8]}
5... Nh6 {[%clk 0:02:36.2]} 6. O-O {[%clk 0:02:51.4]} 6... O-O {[%clk
0:02:35.5]} 7. h3 {[%clk 0:02:47.7]} 7... f6 {[%clk 0:02:35.6]} 8. e5 {[%clk
0:02:42.4]} 8... fxe5 {[%clk 0:02:28.9]} 9. Nxe5 {[%clk 0:02:43.3]} 9... Nf7
{[%clk 0:02:27.8]} 10. Nxf7 {[%clk 0:02:41.5]} 10... Rxf7 {[%clk 0:02:28.7]} 11.
Be3 {[%clk 0:02:41.3]} 11... Nd7 {[%clk 0:02:26.4]} 12. Nb1 {[%clk 0:02:40.3]}
12... e5 {[%clk 0:02:25.4]} 13. dxe5 {[%clk 0:02:39.1]} 13... Nxe5 {[%clk
0:02:24.9]} 14. Nd2 {[%clk 0:02:37.1]} 14... Bxh3 {[%clk 0:02:05.7]} 15. gxh3
{[%clk 0:02:36.5]} 15... d4 {[%clk 0:02:06.1]} 16. Nc4 {[%clk 0:02:27.9]} 16...
dxe3 {[%clk 0:02:06.1]} 17. Nxe5 {[%clk 0:02:27.9]} 17... exf2+ {[%clk
0:01:41.3]} 18. Kg2 {[%clk 0:02:11]} 18... Qg5+ {[%clk 0:01:22.3]} 19. Ng4
{[%clk 0:02:10.6]} 19... Rd8 {[%clk 0:01:22]} 20. Qc1 {[%clk 0:01:51]} 20...
Qd5+ {[%clk 0:01:21.1]} 21. Kg3 {[%clk 0:01:34.4]} 21... Be5+ {[%clk 0:01:20.3]}
22. Kh4 {[%clk 0:01:33.7]} 22... Bf4 {[%clk 0:01:19.8]} 23. Nh6+ {[%clk
0:01:23.4]} 23... Kg7 {[%clk 0:01:12.8]} 24. Nxf7 {[%clk 0:01:22.4]} 24... g5+
{[%clk 0:01:09.2]} 0-1

[Event "Early-Titled-Tuesday-Blitz-February-27-2024"]
[Site "Chess.com"]
[Date "2024.02.27"]
[Round "5"]
[White "ExchangeAB"]
[Black "Sam_ChessMood"]
[Result "1/2-1/2"]
[WhiteElo "2533"]
[BlackElo "2936"]
[TimeControl "180+1"]
[EndTime "8:51:44 PST"]
[Termination "Game drawn by agreement"]

1. d4 {[%clk 0:03:00.9]} 1... Nf6 {[%clk 0:03:00.2]} 2. Nf3 {[%clk 0:03:00.8]}
2... g6 {[%clk 0:03:00.4]} 3. c3 {[%clk 0:03:01.3]} 3... Bg7 {[%clk 0:03:00.8]}
4. Bf4 {[%clk 0:03:02]} 4... O-O {[%clk 0:03:00.9]} 5. h3 {[%clk 0:03:02.7]}
5... d6 {[%clk 0:03:01.2]} 6. e3 {[%clk 0:03:03.3]} 6... b6 {[%clk 0:02:59.5]}
7. Be2 {[%clk 0:03:03.9]} 7... Bb7 {[%clk 0:02:59.9]} 8. O-O {[%clk 0:03:04.4]}
8... c5 {[%clk 0:03:00.2]} 9. Bh2 {[%clk 0:03:03.1]} 9... Nbd7 {[%clk
0:03:00.3]} 10. Nfd2 {[%clk 0:03:02.7]} 10... Re8 {[%clk 0:02:56.8]} 11. a4
{[%clk 0:03:02.6]} 11... a6 {[%clk 0:02:56.3]} 12. Bf3 {[%clk 0:03:01.5]} 12...
d5 {[%clk 0:02:51.2]} 13. Be2 {[%clk 0:03:00.9]} 13... e5 {[%clk 0:02:50.4]} 14.
dxe5 {[%clk 0:03:00.8]} 14... Nxe5 {[%clk 0:02:50.7]} 15. Nf3 {[%clk 0:03:01.5]}
15... Ned7 {[%clk 0:02:38.2]} 16. Nbd2 {[%clk 0:03:01.3]} 16... Qe7 {[%clk
0:02:32]} 17. Re1 {[%clk 0:02:58.4]} 17... h6 {[%clk 0:02:29.8]} 18. Bf1 {[%clk
0:02:55.3]} 18... Ne4 {[%clk 0:02:27.9]} 19. Qc2 {[%clk 0:02:52.3]} 19... Rad8
{[%clk 0:02:14.1]} 20. Nxe4 {[%clk 0:02:51.7]} 20... dxe4 {[%clk 0:02:14]} 21.
Nd2 {[%clk 0:02:51.3]} 21... Be5 {[%clk 0:01:56.4]} 22. Nc4 {[%clk 0:02:48.5]}
22... Bxh2+ {[%clk 0:01:55.9]} 23. Kxh2 {[%clk 0:02:49.4]} 23... Ne5 {[%clk
0:01:51]} 24. Nxe5 {[%clk 0:02:44.5]} 24... Qxe5+ {[%clk 0:01:51.2]} 25. Kg1
{[%clk 0:02:44.9]} 25... Rd6 {[%clk 0:01:48.4]} 26. Red1 {[%clk 0:02:44.7]}
26... Red8 {[%clk 0:01:48.7]} 27. Be2 {[%clk 0:02:43.3]} 27... a5 {[%clk
0:01:45]} 28. Rxd6 {[%clk 0:02:42.2]} 28... Rxd6 {[%clk 0:01:45.9]} 29. Rd1
{[%clk 0:02:42]} 29... Kg7 {[%clk 0:01:41.8]} 30. Rxd6 {[%clk 0:02:41.9]} 30...
Qxd6 {[%clk 0:01:42]} 31. Qd1 {[%clk 0:02:42.8]} 31... Qxd1+ {[%clk 0:01:40.7]}
32. Bxd1 {[%clk 0:02:43.7]} 32... Bc6 {[%clk 0:01:41]} 33. Kf1 {[%clk
0:02:43.6]} 33... f5 {[%clk 0:01:38.8]} 34. h4 {[%clk 0:02:43.8]} 34... Kf6
{[%clk 0:01:38.6]} 35. g3 {[%clk 0:02:44.2]} 35... g5 {[%clk 0:01:38.3]} 36.
hxg5+ {[%clk 0:02:44.2]} 36... hxg5 {[%clk 0:01:38.8]} 37. Ke1 {[%clk
0:02:44.3]} 37... Ke5 {[%clk 0:01:39.2]} 38. Kd2 {[%clk 0:02:44.6]} 38... f4
{[%clk 0:01:39.3]} 39. gxf4+ {[%clk 0:02:44.5]} 39... gxf4 {[%clk 0:01:39.8]}
40. Bc2 {[%clk 0:02:44.2]} 40... f3 {[%clk 0:01:35.9]} 41. c4 {[%clk 0:02:35.2]}
41... Bd7 {[%clk 0:01:28.1]} 42. b3 {[%clk 0:02:35.2]} 42... Bf5 {[%clk
0:01:19.3]} 43. Bd1 {[%clk 0:02:35.5]} 43... Kf6 {[%clk 0:01:19.3]} 44. Bc2
{[%clk 0:02:36]} 44... Kg5 {[%clk 0:01:19.7]} 45. Bd1 {[%clk 0:02:36.6]} 45...
Kh4 {[%clk 0:01:19.7]} 46. Bc2 {[%clk 0:02:37.1]} 46... Kh3 {[%clk 0:01:20.1]}
47. Bd1 {[%clk 0:02:37.5]} 47... Kg2 {[%clk 0:01:20.5]} 48. Ke1 {[%clk 0:02:38]}
48... Kg1 {[%clk 0:01:19.4]} 49. Bc2 {[%clk 0:02:38.3]} 49... Kh2 {[%clk
0:01:17.4]} 50. Bd1 {[%clk 0:02:38.8]} 50... Kh3 {[%clk 0:01:17.6]} 51. Bc2
{[%clk 0:02:39.4]} 51... Kh4 {[%clk 0:01:17.8]} 52. Bd1 {[%clk 0:02:40.1]} 52...
Kg5 {[%clk 0:01:17.1]} 53. Bc2 {[%clk 0:02:40.7]} 53... Kf6 {[%clk 0:01:17.3]}
54. Kd2 {[%clk 0:02:41.3]} 54... Ke5 {[%clk 0:01:17.7]} 55. Kc3 {[%clk
0:02:41.9]} 55... Bh3 {[%clk 0:01:17.6]} 56. Kd2 {[%clk 0:02:26.2]} 56... Bf1
{[%clk 0:01:16.6]} 57. Kc3 {[%clk 0:02:25.5]} 57... Bh3 {[%clk 0:01:12]} 58. Kd2
{[%clk 0:02:25.7]} 1/2-1/2